fUSD/lending_fUSD_20250923
["ID","MTS","AMOUNT","RATE_DAILY","PERIOD"]
[387246709,1758664380703,-984.5,0.00027123,3]
[387246710,1758664380713,-8056.28,0.00027123,3]
[387246711,1758664380722,-400.0,0.00027123,3]
[387246712,1758664380732,-400.0,0.00027123,3]
[387246713,1758664380742,-400.0,0.00027123,3]
[387246714,1758664380751,-400.0,0.00027123,3]
[387246715,1758664380760,-1120.22,0.00027123,3]
[387246716,1758664380770,-1488.78,0.00027123,3]
[387246717,1758664380779,-1898.09,0.00027123,3]
[387246718,1758664380790,-2673.31,0.00027123,3]
[387246719,1758664380799,-400.0,0.00027123,3]
[387246720,1758664380808,-2196.12,0.00027123,3]
[387246721,1758664380818,-403.19,0.00027123,3]
[387246722,1758664380827,-1974.89,0.00027123,3]
[387246723,1758664380836,-1160.52,0.00027123,3]
[387246724,1758664380845,-400.0,0.00027123,3]
[387246725,1758664380855,-186.60934868,0.00027123,3]
[387246726,1758664380865,-4427.59,0.00027123,3]
[387246727,1758664380874,-736.09,0.00027123,3]
[387246728,1758664380883,-509.42,0.00027123,3]
[387246729,1758664380892,-1729.78,0.00027123,3]
[387246730,1758664380902,-858.26,0.00027123,3]
[387246731,1758664380912,-2115.52,0.00027123,3]
[387246732,1758664380922,-523.04,0.00027123,3]
[387246733,1758664380932,-1946.73,0.00027123,3]
[387246734,1758664380941,-590.58,0.00027123,3]
[387246735,1758664380950,-2168.16,0.00027123,3]
[387246736,1758664380960,-1720.08,0.00027123,3]
[387246737,1758664380969,-570.83,0.00027123,3]
[387246738,1758664380979,-1479.38,0.00027123,3]
[387246739,1758664380989,-543.91,0.00027123,3]
[387246740,1758664380998,-3204.79,0.00027123,3]
[387246741,1758664381008,-1290.76,0.00027123,3]
[387246742,1758664381017,-466.33,0.00027123,3]
[387246743,1758664381027,-400.0,0.00027123,3]
[387246744,1758664381036,-727.07,0.00027123,3]
[387246745,1758664381046,-633.05,0.00027123,3]
[387246746,1758664381055,-413.88,0.00027123,3]
[387246747,1758664381065,-1323.54,0.00027123,3]
[387246748,1758664381075,-505.54,0.00027123,3]
[387246749,1758664381086,-621.69417642,0.00027123,3]
[387246750,1758664381095,-654.93,0.00027123,3]
[387246751,1758664381104,-760.67,0.00027123,3]
[387246752,1758664381114,-1733.39,0.00027123,3]
[387246753,1758664381123,-2310.41,0.00027123,3]
[387246754,1758664381132,-562.75,0.00027123,3]
[387246755,1758664381142,-400.0,0.00027123,3]
[387246756,1758664381152,-2523.28,0.00027123,3]
[387246757,1758664381161,-551.29,0.00027123,3]
[387246758,1758664381170,-1966.27,0.00027123,3]
[387246759,1758664381179,-2604.18,0.00027123,3]
[387246760,1758664381188,-1174.67,0.00027123,3]
[387246761,1758664381197,-421.49,0.00027123,3]
[387246762,1758664381207,-400.0,0.00027123,3]
[387246763,1758664381217,-706.26,0.00027123,3]
[387246764,1758664381226,-3628.11,0.00027123,3]
[387246765,1758664381236,-2276.88,0.00027123,3]
[387246766,1758664381245,-565.31,0.00027123,3]
[387246767,1758664381255,-1829.63,0.00027123,3]
[387246768,1758664381264,-2647.87,0.00027123,3]
[387246769,1758664381273,-2516.63,0.00027123,3]
[387246770,1758664381283,-1595.55,0.00027123,3]
[387246771,1758664381292,-400.0,0.00027123,3]
[387246772,1758664381301,-3130.39,0.00027123,3]
[387246773,1758664381310,-400.0,0.00027123,3]
[387246774,1758664381320,-1399.27,0.00027123,3]
[387246775,1758664381329,-4362.99,0.00027123,3]
[387246776,1758664381339,-1323.37,0.00027123,3]
[387246777,1758664381348,-2164.69,0.00027123,3]
[387246778,1758664381358,-410.88,0.00027123,3]
[387246779,1758664381367,-554.53,0.00027123,3]
[387246780,1758664381377,-2696.65,0.00027123,3]
[387246781,1758664381386,-436.41,0.00027123,3]
[387246782,1758664381396,-400.0,0.00027123,3]
[387246783,1758664381408,-2557.76,0.00027123,3]
[387246784,1758664381418,-1822.61,0.00027123,3]
[387246785,1758664381427,-2080.13,0.00027123,3]
[387246786,1758664381436,-7563.58,0.00027123,3]
[387246787,1758664381447,-2197.93,0.00027123,3]
[387246788,1758664381456,-547.88,0.00027123,3]
[387246789,1758664381465,-2360.32,0.00027123,3]
[387246790,1758664381475,-2254.46,0.00027123,3]
[387246791,1758664381485,-3272.4,0.00027123,3]
[387246792,1758664381495,-439.37,0.00027123,3]
[387246793,1758664381506,-2668.58,0.00027123,3]
[387246794,1758664381515,-1439.94,0.00027123,3]
[387246795,1758664381525,-413.35,0.00027123,3]
[387246796,1758664381536,-1694.56,0.00027123,3]
[387246797,1758664381546,-587.39,0.00027123,3]
[387246798,1758664381556,-400.0,0.00027123,3]
[387246799,1758664381567,-877.79,0.00027123,3]
[387246800,1758664381577,-400.0,0.00027123,3]
[387246801,1758664381587,-533.16452622,0.00027123,3]
[387246802,1758664381596,-400.0,0.00027123,3]
[387246803,1758664381606,-1910.92,0.00027123,3]
[387246804,1758664381616,-400.0,0.00027123,3]
[387246805,1758664381626,-2031.07,0.00027123,3]
[387246806,1758664381636,-784.22,0.00027123,3]
[387246807,1758664381646,-791.36,0.00027123,3]
[387246808,1758664381655,-400.0,0.00027123,3]
[387246809,1758664381665,-559.88,0.00027123,3]
[387246810,1758664381675,-976.72,0.00027123,3]
[387246811,1758664381685,-626.61,0.00027123,3]
[387246812,1758664381695,-4896.65,0.00027123,3]
[387246813,1758664381704,-400.0,0.00027123,3]
[387246814,1758664381714,-1207.96,0.00027123,3]
[387246815,1758664381723,-1175.49,0.00027123,3]
[387246816,1758664381733,-2758.07,0.00027123,3]
[387246817,1758664381742,-400.0,0.00027123,3]
[387246818,1758664381751,-2495.95,0.00027123,3]
[387246819,1758664381760,-1205.82,0.00027123,3]
[387246820,1758664381770,-1169.14,0.00027123,3]
[387246821,1758664381779,-400.0,0.00027123,3]
[387246822,1758664381788,-1595.32,0.00027123,3]
[387246823,1758664381798,-1049.38,0.00027123,3]
[387246824,1758664381807,-400.0,0.00027123,3]
[387246825,1758664381816,-4079.21,0.00027123,3]
[387246826,1758664381826,-685.44,0.00027123,3]
[387246827,1758664381835,-400.0,0.00027123,3]
[387246828,1758664381845,-2510.3,0.00027123,3]
[387246829,1758664381855,-1890.53,0.00027123,3]
[387246830,1758664381865,-1678.52,0.00027123,3]
[387246831,1758664381874,-16706.02,0.00027123,3]
[387246832,1758664381884,-400.0,0.00027123,3]
[387246833,1758664381893,-400.0,0.00027123,3]
[387246834,1758664381903,-400.0,0.00027123,3]
[387246835,1758664381912,-689.28,0.00027123,3]
[387246836,1758664381921,-400.0,0.00027123,3]
[387246837,1758664381930,-4251.49,0.00027123,3]
[387246838,1758664381940,-2074.52,0.00027123,3]
[387246839,1758664381949,-720.98,0.00027123,3]
[387246840,1758664381958,-400.0,0.00027123,3]
[387246841,1758664381967,-400.0,0.00027123,3]
[387246842,1758664381977,-425.15,0.00027123,3]
[387246843,1758664381986,-3330.98,0.00027123,3]
[387246844,1758664381995,-487.18,0.00027123,3]
[387246845,1758664382005,-400.0,0.00027123,3]
[387246846,1758664382014,-605.39,0.00027123,3]
[387246847,1758664382023,-425.07,0.00027123,3]
[387246848,1758664382032,-630.04,0.00027123,3]
[387246849,1758664382041,-507.22,0.00027123,3]
[387246850,1758664382051,-1822.56,0.00027123,3]
[387246851,1758664382060,-13418.14,0.00027123,3]
[387246852,1758664382070,-1189.77,0.00027123,3]
[387246853,1758664382079,-908.29,0.00027123,3]
[387246854,1758664382088,-2046.35,0.00027123,3]
[387246855,1758664382098,-752.17,0.00027123,3]
[387246856,1758664382108,-472.22,0.00027123,3]
[387246857,1758664382117,-400.0,0.00027123,3]
[387246858,1758664382128,-2819.02,0.00027123,3]
[387246859,1758664382136,-400.0,0.00027123,3]
[387246860,1758664382146,-2102.44,0.00027123,3]
[387246861,1758664382156,-624.12,0.00027123,3]
[387246862,1758664382166,-7047.04,0.00027123,3]
[387246863,1758664382175,-3617.42,0.00027123,2]
[387246864,1758664382184,-501.0,0.00027137,2]
[387246865,1758664382194,-1501.87263969,0.00027164,2]
[387246866,1758664382203,-2500.0,0.00027164,2]
[387246867,1758664382212,-600.0,0.00027164,2]
[387246868,1758664382222,-176.0,0.00027185,7]
[387246869,1758664382231,-1233.0,0.00027202,2]
[387246870,1758664382240,-500.0,0.00027202,2]
[387246871,1758664382250,-500.0,0.00027202,2]
[387246872,1758664382259,-434.0,0.00027202,2]
[387246873,1758664382269,-400.0,0.00027265,3]
[387246874,1758664382278,-1015.37,0.000273,2]
[387246875,1758664382287,-25389.96,0.000273,7]
[387246876,1758664382297,-947.43,0.00027355,3]
[387246877,1758664382306,-4036.86366715,0.0002739,2]
[387246878,1758664382315,-7974.42343483,0.0002739,2]
[387246879,1758664382324,-403.15,0.00027397,3]
[387246880,1758664382333,-400.0,0.00027397,3]
[387246881,1758664382342,-400.0,0.00027397,3]
[387246882,1758664382351,-422.15,0.00027397,3]
[387246883,1758664382359,-400.0,0.00027397,3]
[387246884,1758664382368,-722.3,0.00027397,3]
[387246885,1758664382377,-400.0,0.00027397,3]
[387246886,1758664382386,-425.13,0.00027397,3]
[387246887,1758664382395,-400.0,0.00027397,3]
[387246888,1758664382407,-463.61,0.00027397,3]
[387246889,1758664382416,-400.0,0.00027397,3]
[387246890,1758664382425,-400.81,0.00027397,3]
[387246891,1758664382434,-606.67,0.00027397,3]
[387246892,1758664382443,-558.51,0.00027397,3]
[387246893,1758664382452,-400.0,0.00027397,3]
[387246894,1758664382461,-517.79,0.00027397,3]
[387246895,1758664382471,-410.1,0.00027397,3]
[387246896,1758664382480,-513.24,0.00027397,3]
[387246897,1758664382490,-864.38,0.00027397,3]
[387246898,1758664382500,-400.0,0.00027397,3]
[387246899,1758664382508,-400.0,0.00027397,3]
[387246900,1758664382517,-400.0,0.00027397,3]
[387246901,1758664382527,-400.0,0.00027397,3]
[387246902,1758664382536,-400.0,0.00027397,3]
[387246903,1758664382545,-400.0,0.00027397,3]
[387246904,1758664382555,-1162.37,0.00027397,3]
[387246905,1758664382564,-400.0,0.00027397,3]
[387246906,1758664382574,-499.32,0.00027397,3]
[387246907,1758664382584,-400.0,0.00027397,3]
[387246908,1758664382593,-400.0,0.00027397,3]
[387246909,1758664382602,-400.0,0.00027397,3]
[387246910,1758664382611,-701.54,0.00027397,3]
[387246911,1758664382620,-761.54,0.00027397,3]
[387246912,1758664382629,-448.15,0.00027397,3]
[387246913,1758664382638,-527.27,0.00027397,3]
[387246914,1758664382647,-400.0,0.00027397,3]
[387246915,1758664382657,-400.0,0.00027397,3]
[387246916,1758664382666,-400.0,0.00027397,3]
[387246917,1758664382675,-433.43,0.00027397,3]
[387246918,1758664382684,-400.0,0.00027397,3]
[387246919,1758664382693,-1431.46,0.00027397,3]
[387246920,1758664382703,-400.0,0.00027397,3]
[387246921,1758664382712,-888.36,0.00027397,3]
[387246922,1758664382724,-400.0,0.00027397,3]
[387246923,1758664382734,-500.78,0.00027397,3]
[387246924,1758664382743,-400.0,0.00027397,3]
[387246925,1758664382752,-400.0,0.00027397,3]
[387246926,1758664382761,-415.37,0.00027397,3]
[387246927,1758664382771,-400.0,0.00027397,3]
[387246928,1758664382780,-851.65,0.00027397,3]
[387246929,1758664382789,-469.22,0.00027397,3]
[387246930,1758664382798,-449.67,0.00027397,3]
[387246931,1758664382807,-514.2,0.00027397,3]
[387246932,1758664382817,-696.09,0.00027397,3]
[387246933,1758664382826,-400.0,0.00027397,3]
[387246934,1758664382836,-942.3,0.00027397,3]
[387246935,1758664382845,-401.11,0.00027397,3]
[387246936,1758664382854,-401.11,0.00027397,3]
[387246937,1758664382864,-426.89,0.00027397,3]
[387246938,1758664382873,-409.1,0.00027397,3]
[387246939,1758664382883,-400.0,0.00027397,3]
[387246940,1758664382892,-483.66,0.00027397,3]
[387246941,1758664382902,-700.73,0.00027397,3]
[387246942,1758664382912,-1218.15,0.00027397,3]
[387246943,1758664382921,-432.38,0.00027397,3]
[387246944,1758664382931,-400.0,0.00027397,3]
[387246945,1758664382940,-508.16464581,0.00027397,10]
[387246946,1758664382950,-413.32,0.00027397,3]
[387246947,1758664382960,-600.39,0.00027397,3]
[387246948,1758664382969,-400.0,0.00027397,3]
[387246949,1758664382979,-525.79,0.00027397,3]
[387246950,1758664382988,-400.0,0.00027397,3]
[387246951,1758664382998,-585.89,0.00027397,3]
[387246952,1758664383007,-400.0,0.00027397,3]
[387246953,1758664383017,-1162.35,0.00027397,3]
[387246954,1758664383026,-869.19,0.00027397,3]
[387246955,1758664383035,-683.96,0.00027397,3]
[387246956,1758664383045,-400.0,0.00027397,3]
[387246957,1758664383054,-853.3,0.00027397,3]
[387246958,1758664383063,-400.0,0.00027397,3]
[387246959,1758664383073,-400.0,0.00027397,3]
[387246960,1758664383082,-684.3,0.00027397,3]
[387246961,1758664383092,-714.46,0.00027397,3]
[387246962,1758664383101,-433.77,0.00027397,3]
[387246963,1758664383110,-400.0,0.00027397,3]
[387246964,1758664383120,-451.05,0.00027397,3]
[387246965,1758664383129,-1130.1,0.00027397,3]
[387246966,1758664383139,-1034.82,0.00027397,3]
[387246967,1758664383148,-414.11,0.00027397,3]
[387246968,1758664383157,-400.0,0.00027397,3]
[387246969,1758664383167,-400.0,0.00027397,3]
[387246970,1758664383176,-400.0,0.00027397,3]
[387246971,1758664383185,-568.34,0.00027397,3]
[387246972,1758664383194,-497.27,0.00027397,3]
[387246973,1758664383204,-400.0,0.00027397,2]
[387246974,1758664383213,-400.0,0.00027397,3]
[387246975,1758664383223,-483.14,0.00027397,3]
[387246976,1758664383232,-400.0,0.00027397,3]
[387246977,1758664383241,-400.0,0.00027397,3]
[387246978,1758664383250,-963.02,0.00027397,3]
[387246979,1758664383259,-442.92,0.00027397,3]
[387246980,1758664383270,-400.0,0.00027397,3]
[387246981,1758664383279,-400.0,0.00027397,3]
[387246982,1758664383288,-419.2,0.00027397,3]
[387246983,1758664383298,-495.44,0.00027397,3]
[387246984,1758664383307,-400.0,0.00027397,3]
[387246985,1758664383317,-1113.1,0.00027397,3]
[387246986,1758664383326,-564.87,0.00027397,3]
[387246987,1758664383335,-400.0,0.00027397,3]
[387246988,1758664383345,-400.0,0.00027397,3]
[387246989,1758664383354,-442.1,0.00027397,3]
[387246990,1758664383364,-612.62,0.00027397,3]
[387246991,1758664383373,-544.44,0.00027397,3]
[387246992,1758664383383,-553.48,0.00027397,3]
[387246993,1758664383392,-811.92,0.00027397,3]
[387246994,1758664383404,-866.52,0.00027397,3]
[387246995,1758664383414,-400.0,0.00027397,3]
[387246996,1758664383423,-400.0,0.00027397,3]
[387246997,1758664383433,-1271.99,0.00027397,3]
[387246998,1758664383442,-400.0,0.00027397,3]
[387246999,1758664383454,-555.94,0.00027397,3]
[387247000,1758664383464,-502.50847323,0.00027397,15]
[387247001,1758664383475,-516.66,0.00027397,3]
[387247002,1758664383486,-443.34,0.00027397,3]
[387247003,1758664383496,-460.81,0.00027397,3]
[387247004,1758664383506,-400.0,0.00027397,3]
[387247005,1758664383516,-198.04556826,0.00027397,3]
[387247006,1758664383662,-502.53,0.00027397,3]
[387247007,1758664383672,-505.37,0.00027397,3]
[387247008,1758664383681,-542.19,0.00027397,3]
[387247009,1758664383691,-688.7,0.00027397,3]
[387247010,1758664383701,-1015.44,0.00027397,3]
[387247011,1758664383711,-1292.63,0.00027397,3]
[387247012,1758664383722,-1611.73,0.00027397,3]
[387247013,1758664383733,-637.7,0.00027397,3]
[387247014,1758664383744,-1000.0,0.00027397,3]
[387247015,1758664383754,-660.83,0.00027397,3]
[387247016,1758664383763,-549.84,0.00027397,3]
[387247017,1758664383773,-500.0,0.00027397,2]
[387247018,1758664383784,-500.0,0.00027397,2]
[387247019,1758664383795,-500.0,0.00027397,2]
[387247020,1758664383804,-500.0,0.00027397,2]
[387247021,1758664383814,-500.0,0.00027397,2]
[387247022,1758664383824,-500.0,0.00027397,2]
[387247023,1758664383833,-500.0,0.00027397,2]
[387247024,1758664383843,-1262.83,0.00027397,3]
[387247025,1758664383853,-500.0,0.00027397,2]
[387247026,1758664383863,-500.0,0.00027397,2]
[387247027,1758664383872,-500.0,0.00027397,2]
[387247028,1758664383882,-500.0,0.00027397,2]
[387247029,1758664383891,-400.0,0.00027397,3]
[387247030,1758664383901,-511.14,0.00027397,3]
[387247031,1758664383910,-1072.23,0.00027397,3]
[387247032,1758664383919,-435.66,0.00027397,3]
[387247033,1758664383929,-400.0,0.00027397,3]
[387247034,1758664383939,-446.42,0.00027397,3]
[387247035,1758664383948,-956.24,0.00027397,3]
[387247036,1758664383958,-804.81,0.00027397,3]
[387247037,1758664383967,-493.33,0.00027397,3]
[387247038,1758664383978,-400.0,0.00027397,3]
[387247039,1758664383988,-400.0,0.00027397,3]
[387247040,1758664383997,-400.0,0.00027397,3]
[387247041,1758664384007,-400.0,0.00027397,3]
[387247042,1758664384017,-425.12,0.00027397,3]
[387247043,1758664384029,-400.0,0.00027397,3]
[387247044,1758664384039,-536.14,0.00027397,3]
[387247045,1758664384048,-400.0,0.00027397,3]
[387247046,1758664384057,-400.0,0.00027397,3]
[387247047,1758664384067,-400.0,0.00027397,3]
[387247048,1758664384076,-647.53,0.00027397,3]
[387247049,1758664384086,-1446.35,0.00027397,3]
[387247050,1758664384095,-400.0,0.00027397,3]
[387247051,1758664384105,-400.0,0.00027397,3]
[387247052,1758664384114,-400.0,0.00027397,3]
[387247053,1758664384124,-712.76,0.00027397,3]
[387247054,1758664384133,-400.0,0.00027397,3]
[387247055,1758664384143,-400.0,0.00027397,3]
[387247056,1758664384152,-742.51,0.00027397,3]
[387247057,1758664384161,-400.0,0.00027397,3]
[387247058,1758664384171,-400.0,0.00027397,3]
[387247059,1758664384180,-609.25,0.00027397,3]
[387247060,1758664384190,-1004.12,0.00027397,3]
[387247061,1758664384199,-400.0,0.00027397,3]
[387247062,1758664384209,-1267.73,0.00027397,3]
[387247063,1758664384218,-400.0,0.00027397,3]
[387247064,1758664384228,-1089.2,0.00027397,3]
[387247065,1758664384238,-525.58061004,0.00027397,3]
[387247066,1758664384248,-936.94,0.00027397,3]
[387247067,1758664384257,-400.0,0.00027397,3]
[387247068,1758664384267,-400.0,0.00027397,3]
[387247069,1758664384276,-400.0,0.00027397,3]
[387247070,1758664384286,-628.73,0.00027397,3]
[387247071,1758664384295,-792.8,0.00027397,3]
[387247072,1758664384305,-718.2,0.00027397,3]
[387247073,1758664384315,-771.65,0.00027397,3]
[387247074,1758664384324,-735.99,0.00027397,3]
[387247075,1758664384333,-724.09,0.00027397,3]
[387247076,1758664384343,-735.82,0.00027397,3]
[387247077,1758664384353,-400.0,0.00027397,3]
[387247078,1758664384363,-724.51,0.00027397,3]
[387247079,1758664384373,-590.38,0.00027397,3]
[387247080,1758664384383,-400.0,0.00027397,3]
[387247081,1758664384392,-443.29,0.00027397,3]
[387247082,1758664384405,-424.82,0.00027397,3]
[387247083,1758664384414,-704.47,0.00027397,3]
[387247084,1758664384424,-597.65,0.00027397,3]
[387247085,1758664384434,-644.02,0.00027397,3]
[387247086,1758664384443,-490.6,0.00027397,3]
[387247087,1758664384453,-544.45,0.00027397,3]
[387247088,1758664384463,-369.26809387,0.00027397,3]
[387247089,1758664384473,-1124.92,0.00027397,3]
[387247090,1758664384483,-400.98,0.00027397,3]
[387247091,1758664384493,-1607.1,0.00027397,3]
[387247092,1758664384503,-643.25,0.00027397,3]
[387247093,1758664384512,-702.26,0.00027397,3]
[387247094,1758664384522,-623.69,0.00027397,3]
[387247095,1758664384531,-400.0,0.00027397,3]
[387247096,1758664384541,-1080.61,0.00027397,3]
[387247097,1758664384550,-422.24,0.00027397,3]
[387247098,1758664384560,-417.7,0.00027397,3]
[387247099,1758664384570,-909.48,0.00027397,3]
[387247100,1758664384579,-400.0,0.00027397,3]
[387247101,1758664384589,-515.95,0.00027397,3]
[387247102,1758664384599,-400.0,0.00027397,3]
[387247103,1758664384608,-419.15,0.00027397,3]
[387247104,1758664384618,-1535.1,0.00027397,3]
[387247105,1758664384628,-421.32,0.00027397,3]
[387247106,1758664384638,-610.62,0.00027397,3]
[387247107,1758664384648,-400.0,0.00027397,3]
[387247108,1758664384657,-788.82,0.00027397,3]
[387247109,1758664384667,-501.25,0.00027397,3]
[387247110,1758664384678,-400.0,0.00027397,3]
[387247111,1758664384687,-400.0,0.00027397,3]
[387247112,1758664384697,-400.0,0.00027397,3]
[387247113,1758664384707,-400.0,0.00027397,3]
[387247114,1758664384716,-326.80614894,0.00027397,3]
[387247115,1758664384726,-467.58,0.00027397,3]
[387247116,1758664384736,-614.35,0.00027397,3]
[387247117,1758664384745,-387.17,0.00027397,3]
[387247118,1758664384755,-686.69,0.00027397,3]
[387247119,1758664384765,-400.0,0.00027397,3]
[387247120,1758664384776,-1284.73,0.00027397,3]
[387247121,1758664384785,-642.36,0.00027397,3]
[387247122,1758664384795,-400.0,0.00027397,3]
[387247123,1758664384805,-560.54,0.00027397,3]
[387247124,1758664384815,-1073.37,0.00027397,3]
[387247125,1758664384825,-753.1,0.00027397,3]
[387247126,1758664384835,-400.0,0.00027397,3]
[387247127,1758664384845,-545.97,0.00027397,3]
[387247128,1758664384855,-400.0,0.00027397,3]
[387247129,1758664384865,-400.0,0.00027397,3]
[387247130,1758664384875,-580.05,0.00027397,3]
[387247131,1758664384885,-1196.06,0.00027397,3]
[387247132,1758664384895,-779.4,0.00027397,3]
[387247133,1758664384905,-1387.31,0.00027397,3]
[387247134,1758664384915,-526.44,0.00027397,3]
[387247135,1758664384925,-400.0,0.00027397,3]
[387247136,1758664384936,-914.9,0.00027397,3]
[387247137,1758664384946,-500.0,0.00027397,60]
[387247138,1758664384955,-400.0,0.00027397,3]
[387247139,1758664384965,-500.0,0.00027397,60]
[387247140,1758664384975,-500.0,0.00027397,60]
[387247141,1758664384984,-500.0,0.00027397,60]
[387247142,1758664384994,-500.0,0.00027397,60]
[387247143,1758664385004,-500.0,0.00027397,60]
[387247144,1758664385014,-500.0,0.00027397,60]
[387247145,1758664385023,-751.05,0.00027397,3]
[387247146,1758664385032,-500.0,0.00027397,60]
[387247147,1758664385042,-343.37257419,0.00027397,60]
[387247148,1758664385051,-10481.21,0.00027397,3]
[387247149,1758664385061,-400.0,0.00027397,3]
[387247150,1758664385071,-585.69,0.00027397,3]
[387247151,1758664385081,-400.0,0.00027397,3]
[387247152,1758664385091,-1984.04,0.00027397,3]
[387247153,1758664385101,-1075.59,0.00027397,3]
[387247154,1758664385111,-1243.9,0.00027397,3]
[387247155,1758664385120,-2675.56,0.00027397,3]
[387247156,1758664385129,-1687.56,0.00027397,3]
[387247157,1758664385139,-603.56,0.00027397,3]
[387247158,1758664385150,-400.0,0.00027397,3]
[387247159,1758664385160,-613.2,0.00027397,3]
[387247160,1758664385169,-1380.17,0.00027397,3]
[387247161,1758664385179,-400.0,0.00027397,3]
[387247162,1758664385188,-400.0,0.00027397,3]
[387247163,1758664385198,-637.31,0.00027397,3]
[387247164,1758664385207,-536.31,0.00027397,3]
[387247165,1758664385216,-1960.16,0.00027397,3]
[387247166,1758664385226,-653.4,0.00027397,3]
[387247167,1758664385235,-400.0,0.00027397,3]
[387247168,1758664385245,-400.0,0.00027397,3]
[387247169,1758664385255,-1811.83,0.00027397,3]
[387247170,1758664385265,-400.0,0.00027397,3]
[387247171,1758664385274,-3596.07,0.00027397,3]
[387247172,1758664385284,-485.31,0.00027397,3]
[387247173,1758664385293,-609.4,0.00027397,3]
[387247174,1758664385303,-1777.36,0.00027397,3]
[387247175,1758664385312,-955.0,0.00027397,3]
[387247176,1758664385322,-1530.13,0.00027397,3]
[387247177,1758664385332,-400.0,0.00027397,3]
[387247178,1758664385342,-1065.12,0.00027397,3]
[387247179,1758664385351,-400.0,0.00027397,3]
[387247180,1758664385361,-624.46,0.00027397,3]
[387247181,1758664385370,-668.62,0.00027397,3]
[387247182,1758664385380,-400.0,0.00027397,3]
[387247183,1758664385389,-766.88,0.00027397,3]
[387247184,1758664385398,-488.82,0.00027397,3]
[387247185,1758664385413,-400.0,0.00027397,3]
[387247186,1758664385423,-1866.98,0.00027397,3]
[387247187,1758664385432,-674.88,0.00027397,3]
[387247188,1758664385442,-507.6,0.00027397,3]
[387247189,1758664385453,-2251.93,0.00027397,3]
[387247190,1758664385463,-1430.39,0.00027397,3]
[387247191,1758664385473,-1005.24,0.00027397,3]
[387247192,1758664385483,-400.0,0.00027397,3]
[387247193,1758664385492,-706.55,0.00027397,3]
[387247194,1758664385502,-400.0,0.00027397,3]
[387247195,1758664385511,-471.06,0.00027397,3]
[387247196,1758664385521,-440.49,0.00027397,3]
[387247197,1758664385530,-1632.87,0.00027397,3]
[387247198,1758664385540,-2172.06,0.00027397,3]
[387247199,1758664385550,-1577.53,0.00027397,3]
[387247200,1758664385559,-573.43,0.00027397,3]
[387247201,1758664385569,-1762.21,0.00027397,3]
[387247202,1758664385578,-2598.87,0.00027397,3]
[387247203,1758664385588,-2106.48,0.00027397,3]
[387247204,1758664385597,-400.0,0.00027397,3]
[387247205,1758664385607,-2137.16,0.00027397,3]
[387247206,1758664385617,-1633.99,0.00027397,3]
[387247207,1758664385627,-665.33,0.00027397,3]
[387247208,1758664385636,-400.0,0.00027397,3]